Cogmind - Beta 14 @@@ ROGUE MODE // 2024.08.27 @ 00:34:10 Player: THN-L0C Result: Destroyed by S-43 Plague with Heavy Machine Gun Performance ------------- Evolutions (9) 4500 Regions Visited (19) 3800 Robots Destroyed (174) 870 Value Destroyed (8934) 8934 Prototype IDs (37) 740 Alien Tech Used (0) 0 Bonus (3521) 3521 TOTAL SCORE: 22365 Bonus ------- High Alert Combat Kills 1189 Follower Combat Kills 1672 Entered Garrisons 200 Aligned with FarCom 300 Met Data Miner 300 Acquired ECA 300 Friendly Fire -440 Cogmind --------- Core Integrity 0/1600 Matter 22/300 Energy 100/100 System Corruption 0% Temperature Cool (0) Movement Core (50) Location -1/Access Parts ------- > --- POWER (2) -------- (None) > --- PROPULSION (10) -- (None) > --- UTILITY (10) ----- (None) > --- WEAPON (3) ------- (None) > --- INVENTORY (5) ---- Light Particle Reactor Light Particle Reactor Peak State ------------ > --- POWER ------------ Quantum Reactor Quantum Reactor > --- PROPULSION ------- Advanced Medium Treads Heavy Siege Treads Heavy Siege Treads Advanced VSS Leg > --- UTILITY ---------- Advanced Cooling System Advanced Cooling System Large Storage Unit Advanced Targeting Computer Improved Target Analyzer Advanced Target Analyzer Core Analyzer Improved Armor Integrity Analyzer Matter Filter Weapon Cycler > --- WEAPON ----------- Matter Neutralizer Railgun Hardcell Cannon > --- INVENTORY -------- Reinforced Fission Core Quantum Reactor Heavy Treads Myomer Leg Advanced Energy Well Matter Compressor Encrypted Comm Array Improved Phase Shifter Improved Propulsion Shielding Gamma Rifle Smartbomb Launcher Ionic Axe [Rating: 136] Favorites ----------- Power Light Antimatter Reactor Engine Ion Engine Power Core Light Nuclear Core Reactor Light Antimatter Reactor Propulsion Light Treads Treads Light Treads Leg Advanced VSS Leg Wheel Armored Wheel Hover Unit Backup Propulsion III Flight Unit Xenon Bombardment Thruster Utility Large Storage Unit Device Weapon Cycler Storage Large Storage Unit Processor Core Analyzer Hackware Hacking Suite Protection Backup Plating III Weapon Magnetic Acceleration Cannon Energy Gun Pulse Rifle Energy Cannon Heavy Plasma Cannon Ballistic Gun Shotgun Ballistic Cannon Magnetic Acceleration Cannon Launcher Mini Smartbomb Launcher Special Weapon Field Lobotomy Kit Slashing Weapon Ionic Axe Build | -11 -10 -10 -10 -9 -8 -7 -7 -7 -7 -6 -6 -6 -6 -5 -5 -4 -3 -2 -1 ------- Run | Yrd Mat Min Exi Min Mat Fac Was Fac Gar Fac Low Low Dat Pro Fac Fac Res Res Acc Slots Evolved 18 | . . . . . 4 2 . . . 2 . . . . 2 2 2 2 2 Power 1 | . . . . . . . . . . 1 . . . . . . . . . Propulsion 8 | . . . . . 1 . . . . 1 . . . . . . 2 2 2 Utility 8 | . . . . . 2 2 . . . . . . . . 2 2 . . . Weapon 1 | . . . . . 1 . . . . . . . . . . . . . . Parts Attached 282 | 7 5 2 1 4 16 2 20 7 15 8 16 17 . 4 15 15 98 26 4 Power 44 | 1 . . . 1 3 1 2 . 2 2 3 3 . . 3 2 17 3 1 Engine 8 | 1 . . . 1 . . . . . 1 2 1 . . 2 . . . . Core 9 | . . . . . 3 1 1 . 1 . . 2 . . . 1 . . . Reactor 27 | . . . . . . . 1 . 1 1 1 . . . 1 1 17 3 1 Propulsion 84 | 2 . . . . 2 . 1 . 5 1 4 . . . 4 4 40 18 3 Treads 28 | 2 . . . . 1 . 1 . 4 1 4 . . . . . 3 12 . Leg 15 | . . . . . . . . . 1 . . . . . 3 4 7 . . Wheel 2 | . . . . . 1 . . . . . . . . . . . . . 1 Hover 25 | . . . . . . . . . . . . . . . 1 . 24 . . Flight 14 | . . . . . . . . . . . . . . . . . 6 6 2 Utility 68 | 2 1 . 1 1 4 . 3 4 5 4 6 8 . 2 4 6 16 1 . Device 34 | 1 . . 1 . 2 . 2 1 2 2 4 5 . 2 2 2 8 . . Storage 5 | 1 1 . . . . . . 1 . . . . . . 1 . 1 . . Processor 10 | . . . . . 1 . . 1 1 . . 1 . . . 2 3 1 . Hackware 1 | . . . . . . . . . . . . . . . . . 1 . . Protection 18 | . . . . 1 1 . 1 1 2 2 2 2 . . 1 2 3 . . Artifact . | . . . . . . . . . . . . . . . . . . . . Weapon 86 | 2 4 2 . 2 7 1 14 3 3 1 3 6 . 2 4 3 25 4 . Energy Gun 7 | . . . . . . . 1 1 . . . . . . 3 . 2 . . Energy Cannon 22 | . . . . . . . . 1 1 . . 3 . . . 2 14 1 . Ballistic Gun 19 | 2 1 . . . 6 . 3 . . . 1 . . . . . 4 2 . Ballistic Cannon 17 | . 2 . . . . . 3 1 1 . 1 3 . 2 1 . 3 . . Launcher 13 | . 1 1 . 1 1 1 3 . 1 1 1 . . . . . 1 1 . Special Weapon 6 | . . 1 . 1 . . 4 . . . . . . . . . . . . Impact Weapon . | . . . . . . . . . . . . . . . . . . . . Slashing Weapon 2 | . . . . . . . . . . . . . . . . 1 1 . . Piercing Weapon . | . . . . . . . . . . . . . . . . . . . . Special Melee Weapon . | . . . . . . . . . . . . . . . . . . . . Unidentified Prototypes 3 | . . . . . . . 1 . . . . . . . 1 . . 1 . Corrupted Parts 2 | . . . . . . . . . . . . . . . . . . 2 . System Corruption 9 | . . . . . . . . . . . . . . . . . . 9 . Parts Lost 123 | . . 1 . 1 1 . 12 1 1 1 10 3 . 8 2 1 53 20 8 Power 19 | . . . . . . . 1 1 . . 3 . . 2 . . 9 2 1 Propulsion 44 | . . . . . 1 . 1 . . . 3 . . 4 . . 20 9 6 Utility 33 | . . 1 . 1 . . 4 . 1 1 2 1 . 1 . 1 14 5 1 Weapon 27 | . . . . . . . 6 . . . 2 2 . 1 2 . 10 4 . Highest Loss Streak 13 | . . 1 . 1 1 . 10 1 1 1 9 1 . 7 1 1 13 13 3 To Critical Strikes 1 | . . . . . . . . . . . . . . . . . 1 . . Average Slot Usage (%) 80 | . 100 93 85 92 93 84 53 79 90 85 76 91 100 61 85 97 81 45 14 Engine 3 | . 14 14 14 14 2 . 2 6 . 5 5 6 6 1 3 4 . . . Core 1 | . . . . . 6 7 1 . 1 . . 5 6 1 . . . . . Reactor 3 | . . . . . . . 1 . 4 6 2 . . . 3 5 8 4 1 Treads 10 | . 28 28 28 28 21 15 3 . 6 20 15 26 26 4 . . 3 12 . Leg 1 | . . . . . . . . . . . . . . . 11 17 5 . . Hover 4 | . . . . . . . 4 15 11 . . . . . 2 2 10 . . Device 8 | . 14 7 . . 8 7 5 3 4 9 10 7 6 11 15 19 11 . . Storage 6 | . 14 14 14 14 9 7 2 5 7 6 6 6 6 6 5 5 3 . . Processor 12 | . . . . . 8 7 2 5 12 13 13 16 20 20 17 20 20 14 5 Protection 8 | . . . . 6 9 7 9 18 19 9 7 6 6 1 3 5 2 . . Energy Gun 2 | . . . . . . . 4 15 3 . . . . . 8 5 . . . Energy Cannon 1 | . . . . . . . . 4 1 2 . 2 13 2 . 3 4 . . Ballistic Gun 4 | . 21 14 14 14 24 18 2 . . . 4 1 . . . . 1 2 . Ballistic Cannon 4 | . 6 . . . . . 1 2 7 6 4 7 6 11 6 4 1 . . Launcher 2 | . . 13 14 12 1 4 2 . 5 3 2 . . . . . . . . Peak Build Rating 136 | 7 7 7 10 10 30 30 54 42 67 74 74 63 63 63 92 108 136 112 48 Average Rating 56 | 5 7 6 6 7 25 28 26 35 54 71 52 57 63 43 76 102 114 69 30 On Entrance 42 | . 7 7 6 10 9 30 28 23 42 65 74 59 63 63 39 92 108 75 48 Naked Turns 37 | . . . . . . . 21 . . . . . . . . . . . 16 Heaviest Build 112 | 14 31 31 31 31 43 43 65 47 91 108 101 73 72 72 78 84 112 50 8 Greatest Support 280 | 40 40 40 40 40 62 42 70 16 90 90 96 96 96 96 54 86 170 280 25 Greatest Overweight (x) 13 | . . . . . 1 1 5 2 5 1 13 . . 13 13 1 6 2 . Average Overweight (x) 1 | . . . . . . 1 1 1 2 1 . . . 6 1 . . . . Largest Inventory Capacity 15 | 8 15 15 15 15 15 15 15 15 15 15 15 15 15 15 15 15 15 15 5 Average Capacity 14 | 7 14 15 15 15 15 15 8 12 15 15 15 15 15 15 15 15 14 5 5 Most Carried 15 | 1 3 6 8 12 15 15 15 12 15 15 15 15 15 15 15 15 15 7 5 Average Carried 11 | . 2 5 6 8 14 15 6 6 14 14 13 14 15 13 14 14 10 4 4 Final Capacity 15 | 8 15 15 15 15 15 15 5 15 15 15 15 15 15 15 15 15 15 5 5 Final Carried 15 | 1 3 6 7 12 15 15 4 12 15 15 15 15 15 14 15 15 7 5 2 Class Distribution -------------------- 29% | Mutant 22% | Tank 20% | Scavenger-Gunner 11% | Scavenger-Bomber 9% | Scavenger-Mutant 3% | Bomber Dominant Class ---------------- Mutant | -10/Materials Mutant | -10/Mines Mutant | -10/Exiles Mutant | -9/Mines Tank | -8/Materials Tank | -7/Factory Mutant | -7/Waste Tank | -7/Factory Tank | -7/Garrison Scavenger-Bomber | -6/Factory Scavenger-Gunner | -6/Lower Caves Scavenger-Gunner | -6/Lower Caves Scavenger-Gunner | -6/Data Miner Mutant | -5/Proximity Caves Scavenger-Gunner | -5/Factory Scavenger-Gunner | -4/Factory Scavenger-Mutant | -3/Research Mutant | -2/Research Mutant | -1/Access Resources | -11 -10 -10 -10 -9 -8 -7 -7 -7 -7 -6 -6 -6 -6 -5 -5 -4 -3 -2 -1 ----------- Run | Yrd Mat Min Exi Min Mat Fac Was Fac Gar Fac Low Low Dat Pro Fac Fac Res Res Acc Matter Collected 6703 | 314 127 84 104 108 446 137 571 49 789 614 460 421 . 40 280 230 1773 141 15 Remotely . | . . . . . . . . . . . . . . . . . . . . Salvage Created 7956 | 112 215 68 . 131 528 108 260 . 283 807 443 298 . 71 286 514 3426 406 . Parts 352 | 7 16 5 . 4 28 11 . . 11 26 13 13 . 2 8 15 166 27 . Haulers Intercepted 3 | . 1 . . . . . . . . 1 . . . . . . 1 . . Recyclers Shooed 5 | . . . . . . . . . . . . 1 . . 1 1 2 . . Parts Field Recycled . | . . . . . . . . . . . . . . . . . . . . Retrieved Matter . | . . . . . . . . . . . . . . . . . . . . Parts Self-Destructed 35 | . . . . . . . . . . . 22 11 . 2 . . . . . Prevented . | . . . . . . . . . . . . . . . . . . . . Kills | -11 -10 -10 -10 -9 -8 -7 -7 -7 -7 -6 -6 -6 -6 -5 -5 -4 -3 -2 -1 ------- Run | Yrd Mat Min Exi Min Mat Fac Was Fac Gar Fac Low Low Dat Pro Fac Fac Res Res Acc Combat Hostiles Destroyed 138 | . 9 2 . 2 13 3 1 . 12 12 12 8 . 1 4 5 47 7 . Melee 8 | . . . . . . . . . . . . . . . . 1 4 3 . Guns 36 | . 3 . . 1 9 1 . . 1 . 2 2 . . 2 1 11 3 . Cannons 55 | . 3 . . 1 . . 1 . 4 3 7 4 . 1 2 2 26 1 . AOE 32 | . 3 2 . . 4 2 . . 7 5 3 1 . . . 1 4 . . Classes Destroyed 19 | 2 3 2 . 1 2 1 1 . 2 2 . . . . . . 1 2 . Worker 12 | . . 1 . . 3 2 . . . 2 . . . . 1 . 2 1 . Builder 4 | . . . . . . . . . . . . . . . . . 3 1 . Tunneler 4 | 1 1 2 . . . . . . . . . . . . . . . . . Hauler 3 | . 1 . . . . . . . . 1 . . . . . . 1 . . Recycler 12 | 1 . . . 1 1 . . . . . . . . . 1 2 6 . . Swarmer 38 | . 6 . . . 4 2 . . 7 . 3 5 . . . 2 9 . . Cutter 3 | . . . . . . . . . . . . . . . . . . 3 . Saboteur 1 | . . . . . . . . . . 1 . . . . . . . . . Grunt 45 | . 3 1 . 1 6 . . . 3 7 5 1 . . 1 . 15 2 . Brawler 2 | . . . . 1 . . . . . 1 . . . . . . . . . Duelist 3 | . . . . . . . . . . 1 1 . . . . 1 . . . Protector 1 | . . . . . . . . . . 1 . . . . . . . . . Sentry 7 | . . . . . 2 . . . . . 2 1 . 1 1 . . . . Specialist 2 | . . . . . . . . . . . . . . . . . . 2 . Hunter 7 | . . . . . 1 . . . 1 . . . . . . 2 3 . . Programmer 24 | . . . . . . 1 . . . 1 1 . . . 2 . 19 . . Behemoth 3 | . . . . . . . . . 1 . . 1 . . . . 1 . . Compactor 1 | . . . . . . . 1 . . . . . . . . . . . . Packrat 3 | . . . . . . . . . . . . 3 . . . . . . . Assembled 1 | . . 1 . . . . . . . . . . . . . . . . . Thug 1 | . . . . . . . . . . . . . . . . 1 . . . Butcher 1 | . . . . . . . . . 1 . . . . . . . . . . Best Kill Streak 7 | 2 5 5 . 2 6 2 1 . 3 7 4 3 . 1 2 3 6 4 . Combat Bots Only 5 | . 3 2 . 2 4 2 1 . 3 5 4 3 . 1 2 3 4 3 . Max Kills in Single Turn 3 | 1 2 2 . 1 3 2 1 . 3 3 2 1 . 1 1 2 2 1 . Gunslinging . | . . . . . . . . . . . . . . . . . . . . Exploded 3 | . 1 1 . . 2 2 . . 3 3 2 1 . . . 1 1 . . Melee 1 | . . . . . . . . . . . . . . . . 1 1 1 . Uniques/NPCs Destroyed . | . . . . . . . . . . . . . . . . . . . . Combat | -11 -10 -10 -10 -9 -8 -7 -7 -7 -7 -6 -6 -6 -6 -5 -5 -4 -3 -2 -1 -------- Run | Yrd Mat Min Exi Min Mat Fac Was Fac Gar Fac Low Low Dat Pro Fac Fac Res Res Acc Hostile Shots Fired 1620 | . 37 9 . 8 66 24 14 . 50 54 147 62 . 69 27 66 557 200 230 Missed 531 | . 14 1 . 2 10 7 . . 18 7 40 25 . 16 5 27 166 59 134 Damage Taken 21998 | . 192 97 . 123 727 287 779 21 539 862 1769 486 . 1060 458 500 8385 3589 2124 Core 4218 | . 42 . . 11 107 44 323 . 52 116 244 150 . 111 22 46 737 609 1604 Absorbed by Shields 16 | . . . . . . . 16 . . . . . . . . . . . . Reduced by Siege Mode 808 | . . . . . . . . . . . . . . . . . 808 . . Redirected to Shielding 222 | . . . . 2 . . 26 . . . 16 . . . . . 178 . . Ignored by Resistances 412 | . . . . . . . . . 14 72 154 . . . . . 172 . . Regen/Repaired (Parts) 118 | . . . . . . . . . 42 76 . . . . . . . . . Core Remaining (%) 68 | 100 . . . 78 80 . . . 40 . . . . 26 97 96 43 58 . Volleys Fired 478 | 11 21 10 . 9 28 15 45 . 32 28 24 27 . 15 14 14 154 31 . Largest 3 | 2 2 2 . 2 3 2 2 . 3 1 2 2 . 2 3 3 3 2 . Hottest 339 | 40 55 120 . 120 76 56 100 . 151 75 103 175 . 188 191 210 339 94 . Shots Fired 779 | 22 41 11 . 11 76 23 75 . 38 28 30 36 . 29 31 31 242 55 . Gun 380 | 22 32 4 . 9 72 19 37 . 4 . 6 6 . . 16 9 93 51 . Cannon 343 | . 6 . . . . . 33 . 26 18 22 29 . 29 15 22 140 3 . Launcher 51 | . 3 6 . 1 4 4 2 . 8 10 2 1 . . . . 9 1 . Special 5 | . . 1 . 1 . . 3 . . . . . . . . . . . . Kinetic 560 | 22 38 4 . 9 72 19 64 . 26 18 28 31 . 13 15 14 136 51 . Thermal 136 | . . 1 . 1 . . 1 . 4 . . 4 . 16 16 9 84 . . Explosive 41 | . 3 6 . 1 4 4 2 . 8 . 2 1 . . . . 9 1 . Electromagnetic 40 | . . . . . . . 6 . . 10 . . . . . 8 13 3 . Robot Hit Streak 24 | 2 6 3 . 5 8 4 12 . 4 3 7 14 . 10 11 7 24 7 . Robot Miss Streak 8 | 3 2 1 . 2 3 7 2 . 1 3 6 4 . 1 3 8 5 3 . Penetration Max 1 | . . . . . 1 . . . . . . . . . . . 1 1 . Secondary Targets 3 | . . . . . 1 . . . . . . . . . . . . 2 . Max Gunslinging Chain 1 | . . . . . 1 . . . . . . . . . . . . 1 . Shots Hit Robots 520 | 10 25 5 . 8 54 9 60 . 9 12 23 30 . 23 22 23 173 34 . Core Hits 308 | 5 14 9 . 4 36 7 6 . 17 20 15 17 . 5 21 26 89 17 . Critical Kills 12 | . . . . . . . . . . . . 3 . . . . 9 . . Critical Parts Destroyed 6 | . . . . . . . 1 . . . . . . 1 . . 4 . . Critical Strikes 43 | . . . . . . . 1 . 2 2 . 4 . 3 . 5 26 . . Burn 3 | . . . . . . . . . . . . . . . . 3 . . . Meltdown 2 | . . . . . . . . . . . . 1 . . . . 1 . . Destroy 18 | . . . . . . . 1 . . . . 2 . 3 . . 12 . . Blast 13 | . . . . . . . . . 2 2 . 1 . . . . 8 . . Corrupt 4 | . . . . . . . . . . . . . . . . 2 2 . . Sever 3 | . . . . . . . . . . . . . . . . . 3 . . Melee Attacks 24 | . . . . . . . . . . . . . . . . 4 20 . . Impact . | . . . . . . . . . . . . . . . . . . . . Slashing 24 | . . . . . . . . . . . . . . . . 4 20 . . Piercing . | . . . . . . . . . . . . . . . . . . . . Sneak Attacks . | . . . . . . . . . . . . . . . . . . . . Combat Hostiles . | . . . . . . . . . . . . . . . . . . . . Follow-up Attacks . | . . . . . . . . . . . . . . . . . . . . Damage Inflicted 22283 | 102 593 434 . 182 1204 278 1451 1 1427 2005 1538 1550 . 794 565 866 8150 1134 9 Guns 4759 | 102 223 44 . 84 883 143 483 . 35 . 80 54 . . 209 129 1488 802 . Cannons 10953 | . 91 . . . . . 782 . 486 693 1070 1223 . 794 356 384 4950 124 . Explosions 5559 | . 279 387 . 74 309 135 162 . 906 1295 388 273 . . . 306 848 197 . Melee 844 | . . . . . . . . . . . . . . . . 38 806 . . Ramming 120 | . . 3 . . 12 . . 1 . 17 . . . . . 9 58 11 9 Kinetic 11833 | 102 314 44 . 84 883 143 1259 . 486 693 1150 1141 . 377 356 219 3780 802 . Thermal 3837 | . . . . 24 . . 24 . 35 135 . 136 . 417 209 435 2422 . . Explosive 3958 | . 279 387 . 74 309 135 162 . 906 . 388 273 . . . . 848 197 . Electromagnetic 1661 | . . . . . . . 6 . . 1160 . . . . . 165 236 94 . Impact 30 | . . . . . . . . . . . . . . . . . . 30 . Slashing 844 | . . . . . . . . . . . . . . . . 38 806 . . Piercing . | . . . . . . . . . . . . . . . . . . . . Highest Corruption 22 | . . . . 4 . 1 1 1 2 3 3 . . . 4 . 22 21 . Average Corruption 4 | . . . . 4 . 1 1 1 1 1 2 . . . 3 . 14 16 . Corruption Purged 3 | . . . . . . . . . . . 3 . . . . . . . . Corruption Blocked . | . . . . . . . . . . . . . . . . . . . . Effects 201 | . . . . 7 . . 10 4 40 7 10 . . . 11 . 100 12 . Message Errors 42 | . . . . 2 . . 1 1 10 2 2 . . . 2 . 20 2 . Matter Fused 46 | . . . . 3 . . 4 1 8 1 4 . . . . . 22 3 . Heat Flow Errors 24 | . . . . . . . . 2 4 2 1 . . . 3 . 12 . . Energy Discharges 28 | . . . . 1 . . 1 . 5 1 1 . . . 3 . 14 2 . Parts Rejected 2 | . . . . . . . . . . . . . . . . . 2 . . Parts Fused 2 | . . . . . . . . . . . . . . . . . 2 . . Data Loss (minor) 19 | . . . . . . . 3 . 5 . 1 . . . 1 . 8 1 . Data Loss (major) 9 | . . . . . . . . . 4 . . . . . . . 5 . . Misfires 7 | . . . . 1 . . . . 2 . . . . . 2 . 2 . . Alerts 3 | . . . . . . . . . 2 1 . . . . . . . . . Misdirections 6 | . . . . . . . . . . . . . . . . . 3 3 . Weapon Failures 13 | . . . . . . . 1 . . . 1 . . . . . 10 1 . Overload Shots . | . . . . . . . . . . . . . . . . . . . . Overflow Damage 1092 | . 19 7 . . 5 10 16 . 17 96 147 244 . . . 52 449 30 . Projectiles 756 | . . . . . . . . . . 93 82 188 . . . 11 352 30 . Explosions 295 | . 19 7 . . 5 10 16 . 17 3 65 56 . . . 41 56 . . Melee 41 | . . . . . . . . . . . . . . . . . 41 . . Knockbacks 46 | . 2 . . . . . . . 2 1 3 7 . . 3 6 22 . . Impact . | . . . . . . . . . . . . . . . . . . . . Kinetic 42 | . 2 . . . . . . . 2 1 3 6 . . 3 6 19 . . Secondary 4 | . . . . . . . . . . . . 1 . . . . 3 . . Self-Inflicted Damage 393 | . . . . 40 . 28 83 . 31 45 . 65 . . . 35 62 . 4 Shots 10 | . . . . 1 . 1 2 . 1 2 . 1 . . . 1 1 . . Rammed 20 | . . 1 . . 3 . . 1 . 3 . . . . . . 5 5 2 Targets Rammed 24 | . . 1 . . 3 . . 1 . 3 . . . . . 1 5 8 2 Kicked 1 | . . . . . . . . . . . . . . . . 1 . . . Crushed 3 | . . . . . . . . . . . . . . . . . . 3 . Highest Temperature 556 | . 4 20 . 20 161 . 72 223 243 366 429 72 . 433 304 155 556 68 . Average Temperature 112 | . 3 8 . 10 52 . 31 104 62 155 148 29 . 205 134 41 135 22 . Received Heat Transfer 2786 | . 18 54 . 30 288 . . 9 102 237 501 105 . 147 27 21 839 351 57 Effects 22 | . . . . . . . . . . 5 5 . . 3 . . 9 . . Shutdowns 9 | . . . . . . . . . . 1 2 . . 2 . . 4 . . Energy Bleed 2 | . . . . . . . . . . . . . . . . . 2 . . Interference 3 | . . . . . . . . . . 3 . . . . . . . . . Matter Decay 1 | . . . . . . . . . . . . . . . . . 1 . . Short Circuit 4 | . . . . . . . . . . 1 . . . 1 . . 2 . . Damage (major) 3 | . . . . . . . . . . . 3 . . . . . . . . Siege Activations 6 | . . . . . . . . . . . . . . . . . 6 . . Total Turns 169 | . . . . . . . . . . . . . . . . . 169 . . Longest Duration 47 | . . . . . . . . . . . . . . . . . 47 . . Robots Corrupted 6 | . . . . . . . . . . 4 . . . . . . 2 . . Combat Hostiles 5 | . . . . . . . . . . 4 . . . . . . 1 . . Parts Fried 14 | . . . . . . . . . . 7 . . . . . . 7 . . Impact Corruptions 1 | . . . . . . . . . . . . . . . . . 1 . . Robots Melted 2 | . . . . . . . . . . . . 1 . . . . 1 . . Combat Hostiles 2 | . . . . . . . . . . . . 1 . . . . 1 . . Parts Melted 21 | . . . . 1 . . . . . 1 . 4 . . 4 3 7 1 . Heat Transferred 4438 | . . . . 50 . . 50 . 74 50 . 174 . 600 370 681 2389 . . Parts Sabotaged . | . . . . . . . . . . . . . . . . . . . . Parts Stolen . | . . . . . . . . . . . . . . . . . . . . Parts Stripped . | . . . . . . . . . . . . . . . . . . . . Power Chain Reactions 3 | . . . . . . . . . . 2 . . . . . 1 . . . Alert | -11 -10 -10 -10 -9 -8 -7 -7 -7 -7 -6 -6 -6 -6 -5 -5 -4 -3 -2 -1 ------- Run | Yrd Mat Min Exi Min Mat Fac Was Fac Gar Fac Low Low Dat Pro Fac Fac Res Res Acc Peak Influence 3327 | 10 211 226 . 47 181 202 70 119 3327 1917 . . . . 144 106 664 500 519 Initial 1746 | . 6 82 . . 18 52 70 . 83 1746 . . . . . 26 45 352 300 Average 711 | 3 61 149 . 39 83 129 17 31 1854 1811 . . . . 46 40 250 405 354 Maximum Alert Level 5 | . 1 1 . . . 1 . . 5 5 . . . . . . 2 2 2 Low Security (%) 52 | 100 98 61 . 100 100 89 100 100 1 . . . . . 100 100 51 . . Level 1 9 | . 1 38 . . . 10 . . 5 . . . . . . . 22 34 81 Level 2 7 | . . . . . . . . . 3 . . . . . . . 25 65 18 Level 3 1 | . . . . . . . . . 6 . . . . . . . . . . Level 4 4 | . . . . . . . . . 16 . . . . . . . . . . Level 5 25 | . . . . . . . . . 66 99 . . . . . . . . . High Security . | . . . . . . . . . . . . . . . . . . . . Max Security . | . . . . . . . . . . . . . . . . . . . . Squads Dispatched 41 | . 2 . . . 2 . . 1 . 7 . . . . 2 2 14 6 5 Investigation 7 | . . . . . 1 . . . . . . . . . 1 1 2 . 2 Extermination 12 | . . . . . . . . 1 . 2 . . . . 1 1 7 . . Reinforcement 11 | . 2 . . . 1 . . . . . . . . . . . 2 3 3 Assault 8 | . . . . . . . . . . 5 . . . . . . 3 . . Garrison 3 | . . . . . . . . . . . . . . . . . . 3 . Intercept . | . . . . . . . . . . . . . . . . . . . . Searches Triggered 1 | . . . . . . . . . . . . . . . . . . . 1 Data Miner Redirects 3 | . . . . . . . . . . . . . . . . . 3 . . Construction Impeded 1 | . . . . . 1 . . . . . . . . . . . . . . Haulers Reinforced . | . . . . . . . . . . . . . . . . . . . . Active Scanning Responses . | . . . . . . . . . . . . . . . . . . . . Cargo Convoy Interrupts . | . . . . . . . . . . . . . . . . . . . . Stealth | -11 -10 -10 -10 -9 -8 -7 -7 -7 -7 -6 -6 -6 -6 -5 -5 -4 -3 -2 -1 --------- Run | Yrd Mat Min Exi Min Mat Fac Was Fac Gar Fac Low Low Dat Pro Fac Fac Res Res Acc Distress Signals 12 | . . 1 . . 2 . . 1 . . . . . . . 3 4 1 . Communications Jammed . | . . . . . . . . . . . . . . . . . . . . Distress Signals . | . . . . . . . . . . . . . . . . . . . . Times Spotted 274 | . 13 5 . 2 15 6 10 3 31 21 15 9 . 2 6 14 78 15 29 Peak Tracking Total 15 | . 4 3 . 2 6 4 2 1 5 5 7 3 . 1 3 5 8 4 15 Tactical Retreats 30 | . . 1 . . 1 1 5 . 4 . . 2 . . 1 . 8 1 6 Traps | -11 -10 -10 -10 -9 -8 -7 -7 -7 -7 -6 -6 -6 -6 -5 -5 -4 -3 -2 -1 ------- Run | Yrd Mat Min Exi Min Mat Fac Was Fac Gar Fac Low Low Dat Pro Fac Fac Res Res Acc Traps Triggered 18 | . . . . . 1 1 . 1 5 1 . . . . . 2 5 1 1 Indirectly . | . . . . . . . . . . . . . . . . . . . . Trap Hack Attempts . | . . . . . . . . . . . . . . . . . . . . Triggered . | . . . . . . . . . . . . . . . . . . . . Disarmed . | . . . . . . . . . . . . . . . . . . . . Reprogrammed . | . . . . . . . . . . . . . . . . . . . . Reused . | . . . . . . . . . . . . . . . . . . . . Traps Extracted . | . . . . . . . . . . . . . . . . . . . . Installed . | . . . . . . . . . . . . . . . . . . . . Triggered 1 | . . . . . . . . . . . . 1 . . . . . . . Machines | -11 -10 -10 -10 -9 -8 -7 -7 -7 -7 -6 -6 -6 -6 -5 -5 -4 -3 -2 -1 ---------- Run | Yrd Mat Min Exi Min Mat Fac Was Fac Gar Fac Low Low Dat Pro Fac Fac Res Res Acc Machines Disabled 28 | . 1 . . . 2 2 . 1 13 4 . . . . 1 . 4 . . Max in Single Turn 2 | . 1 . . . 1 2 . . 1 2 . . . . 1 . 2 . . Garrison Relay 6 | . . . . . . . . . 6 . . . . . . . . . . Phase Generator 1 | . . . . . . . . . 1 . . . . . . . . . . Energy Cycler 1 | . . . . . . . . . . . . . . . . . . . 1 Machines Repaired . | . . . . . . . . . . . . . . . . . . . . Machines Dismantled . | . . . . . . . . . . . . . . . . . . . . Machines Sabotaged . | . . . . . . . . . . . . . . . . . . . . Overloaded Fab Kills . | . . . . . . . . . . . . . . . . . . . . Hacking | -11 -10 -10 -10 -9 -8 -7 -7 -7 -7 -6 -6 -6 -6 -5 -5 -4 -3 -2 -1 --------- Run | Yrd Mat Min Exi Min Mat Fac Was Fac Gar Fac Low Low Dat Pro Fac Fac Res Res Acc Machines Accessed 27 | . 2 . 1 . 4 . . 1 . 2 . . 4 . 2 . 7 . 4 Terminals 15 | . 2 . . . 4 . . . . 2 . . . . 1 . 3 . 3 Fabricators 3 | . . . . . . . . . . . . . . . 1 . 2 . . Repair Stations . | . . . . . . . . . . . . . . . . . . . . Recycling Units 1 | . . . . . . . . . . . . . . . . . 1 . . Scanalyzers . | . . . . . . . . . . . . . . . . . . . . Garrison Access 3 | . . . . . . . . 1 . . . . . . . . 1 . 1 Total Hacks 89 | . 7 . 1 . 25 . . 1 . 3 . . 30 . 4 . 11 . 7 Successful 58 | . 7 . 1 . 11 . . 1 . 1 . . 30 . 2 . 4 . 1 Failed 31 | . . . . . 14 . . . . 2 . . . . 2 . 7 . 6 Catastrophic 11 | . . . . . 3 . . . . 1 . . . . 1 . 3 . 3 Database Lockouts . | . . . . . . . . . . . . . . . . . . . . Manual 28 | . 6 . 1 . 16 . . . . 1 . . . . . . 4 . . Terminals 46 | . 7 . . . 25 . . . . 3 . . . . 2 . 4 . 5 Fabricators 7 | . . . . . . . . . . . . . . . 2 . 5 . . Repair Stations . | . . . . . . . . . . . . . . . . . . . . Recycling Units 1 | . . . . . . . . . . . . . . . . . 1 . . Scanalyzers . | . . . . . . . . . . . . . . . . . . . . Garrison Access 4 | . . . . . . . . 1 . . . . . . . . 1 . 2 Terminal Hacks 41 | . 2 . 1 . 5 . . . . 1 . . 30 . . . 1 . 1 Record 11 | . . . . . . . . . . . . . 11 . . . . . . Part Schematic 9 | . . . . . . . . . . . . . 9 . . . . . . Robot Schematic 7 | . . . . . . . . . . . . . 7 . . . . . . Robot Analysis 2 | . 1 . . . 1 . . . . . . . . . . . . . . Prototype ID Bank 3 | . . . . . . . . . . . . . 3 . . . . . . Branch Access Points 2 | . . . . . 1 . . . . 1 . . . . . . . . . Emergency Access Points 1 | . . . . . 1 . . . . . . . . . . . . . . Unreport Threat 1 | . . . . . 1 . . . . . . . . . . . . . . Locate Traps 1 | . 1 . . . . . . . . . . . . . . . . . . Recall Investigation 1 | . . . . . . . . . . . . . . . . . 1 . . Zone Layout 2 | . . . . . 1 . . . . . . . . . . . . . 1 Derelict Proto ID Bank 1 | . . . 1 . . . . . . . . . . . . . . . . Fabricator Hacks 5 | . . . . . . . . . . . . . . . 2 . 3 . . Load Schematic 3 | . . . . . . . . . . . . . . . 1 . 2 . . Build 2 | . . . . . . . . . . . . . . . 1 . 1 . . Repair Station Hacks . | . . . . . . . . . . . . . . . . . . . . Recycling Unit Hacks . | . . . . . . . . . . . . . . . . . . . . Scanalyzer . | . . . . . . . . . . . . . . . . . . . . Garrison Access Hacks 1 | . . . . . . . . 1 . . . . . . . . . . . Unlock Access 1 | . . . . . . . . 1 . . . . . . . . . . . Unauthorized Hacks 11 | . 5 . . . 6 . . . . . . . . . . . . . . Terminals 11 | . 5 . . . 6 . . . . . . . . . . . . . . Assimilate 1 | . 1 . . . . . . . . . . . . . . . . . . Botnet 5 | . 2 . . . 3 . . . . . . . . . . . . . . Skim 5 | . 2 . . . 3 . . . . . . . . . . . . . . Fabricators . | . . . . . . . . . . . . . . . . . . . . Repair Stations . | . . . . . . . . . . . . . . . . . . . . Recycling Units . | . . . . . . . . . . . . . . . . . . . . Scanalyzers . | . . . . . . . . . . . . . . . . . . . . Garrison Access . | . . . . . . . . . . . . . . . . . . . . Data Cores Recovered . | . . . . . . . . . . . . . . . . . . . . Used . | . . . . . . . . . . . . . . . . . . . . Hacking Detections 19 | . 2 . . . 4 . . 1 . 1 . . . . 2 . 6 . 3 Full Trace Events 4 | . . . . . . . . . . . . . . . 1 . 1 . 2 Feedback Events . | . . . . . . . . . . . . . . . . . . . . Feedback Blocked . | . . . . . . . . . . . . . . . . . . . . Robot Schematics Acquired 7 | . . . . . . . . . . . . . 7 . . . . . . Robots Built . | . . . . . . . . . . . . . . . . . . . . Authchips . | . . . . . . . . . . . . . . . . . . . . Time . | . . . . . . . . . . . . . . . . . . . . Total Robot Build Rating . | . . . . . . . . . . . . . . . . . . . . Part Schematics Acquired 9 | . . . . . . . . . . . . . 9 . . . . . . Parts Built 3 | . . . . . . . . . . . . . . . 2 . 1 . . Authchips . | . . . . . . . . . . . . . . . . . . . . Time 227 | . . . . . . . . . . . . . . . 58 . 169 . . Total Part Build Rating 20 | . . . . . . . . . . . . . . . 14 . 6 . . Parts Repaired . | . . . . . . . . . . . . . . . . . . . . Time . | . . . . . . . . . . . . . . . . . . . . Parts Recycled . | . . . . . . . . . . . . . . . . . . . . Recycled Matter . | . . . . . . . . . . . . . . . . . . . . Retrieved Matter . | . . . . . . . . . . . . . . . . . . . . Retrieved Components . | . . . . . . . . . . . . . . . . . . . . Parts Scanalyzed . | . . . . . . . . . . . . . . . . . . . . Part Schematics Acquired . | . . . . . . . . . . . . . . . . . . . . Parts Damaged . | . . . . . . . . . . . . . . . . . . . . Bothacking | -11 -10 -10 -10 -9 -8 -7 -7 -7 -7 -6 -6 -6 -6 -5 -5 -4 -3 -2 -1 ------------ Run | Yrd Mat Min Exi Min Mat Fac Was Fac Gar Fac Low Low Dat Pro Fac Fac Res Res Acc Used RIF Installer . | . . . . . . . . . . . . . . . . . . . . Robots Hacked . | . . . . . . . . . . . . . . . . . . . . Non-combat . | . . . . . . . . . . . . . . . . . . . . Combat . | . . . . . . . . . . . . . . . . . . . . Robot Hacks Applied . | . . . . . . . . . . . . . . . . . . . . Relay Couplers Released 27 | . . . . . . . . . 27 . . . . . . . . . . Machine Destruction 27 | . . . . . . . . . 27 . . . . . . . . . . Fabnet Peak Effective % . | . . . . . . . . . . . . . . . . . . . . Robots Rewired 3 | . . . . . . 1 . . . . 2 . . . . . . . . Allies Hacked 1 | . . . . . . . . 1 . . . . . . . . . . . Hacks Repelled . | . . . . . . . . . . . . . . . . . . . . Allies | -11 -10 -10 -10 -9 -8 -7 -7 -7 -7 -6 -6 -6 -6 -5 -5 -4 -3 -2 -1 -------- Run | Yrd Mat Min Exi Min Mat Fac Was Fac Gar Fac Low Low Dat Pro Fac Fac Res Res Acc Total Allies 30 | . . 3 . . . 1 21 . 2 . 2 . . 1 . . . . . Largest Group 19 | . . 3 1 1 . 1 19 18 15 3 1 . . 1 1 . . . . Highest-Rated Group 475 | . . 40 8 8 . 16 475 459 374 129 29 . . 96 96 . . . . Highest-Rated Ally 141 | . . 16 8 8 . 16 141 35 80 80 29 . . 96 96 . . . . Warlord Squad Rendezvous 2 | . . . . . . . . . . . . . . . . 2 . . . Dakka 1 | . . . . . . . . . . . . . . . . 1 . . . Infantry 1 | . . . . . . . . . . . . . . . . 1 . . . Total Orders . | . . . . . . . . . . . . . . . . . . . . Ally Attacks 285 | . . 44 . 9 . . 34 37 112 17 14 . . 7 11 . . . . Total Damage 7245 | . . 401 . 55 . . 1587 646 3008 844 235 . . 145 324 . . . . Kills 60 | . . 4 . . . . 4 3 36 8 2 . . 1 2 . . . . Allies Corrupted 1 | . . . . . . . . 1 . . . . . . . . . . . Allies Melted . | . . . . . . . . . . . . . . . . . . . . Field Lobotomies 2 | . . . . . . . 2 . . . . . . . . . . . . Intel | -11 -10 -10 -10 -9 -8 -7 -7 -7 -7 -6 -6 -6 -6 -5 -5 -4 -3 -2 -1 ------- Run | Yrd Mat Min Exi Min Mat Fac Was Fac Gar Fac Low Low Dat Pro Fac Fac Res Res Acc Robot Analysis Total 2 | . 1 . . . 1 . . . . . . . . . . . . . . Derelict Logs Recovered 5 | . . 1 . . . . . . . . 2 1 . 1 . . . . . Drone Launches . | . . . . . . . . . . . . . . . . . . . . Drone Recoveries . | . . . . . . . . . . . . . . . . . . . . Exploration | -11 -10 -10 -10 -9 -8 -7 -7 -7 -7 -6 -6 -6 -6 -5 -5 -4 -3 -2 -1 ------------- Run | Yrd Mat Min Exi Min Mat Fac Was Fac Gar Fac Low Low Dat Pro Fac Fac Res Res Acc Turns Passed 18571 | 143 717 238 445 367 1108 202 1102 648 3633 1090 1102 855 146 2102 775 707 2582 301 308 Spaces Moved 8476 | 65 236 95 277 211 352 66 607 326 1184 415 429 466 92 470 282 372 1542 348 641 Core 549 | 3 . . . . . . 257 . . . 2 . . 241 12 . . . 34 Treads 3704 | 62 236 95 277 211 352 66 24 . 408 415 427 466 92 229 . . 310 34 . Legs 792 | . . . . . . . . . . . . . . . 270 372 150 . . Wheels 120 | . . . . . . . 120 . . . . . . . . . . . . Hover 2330 | . . . . . . . 206 326 776 . . . . . . . 1022 . . Flight 981 | . . . . . . . . . . . . . . . . . 60 314 607 Fastest Speed 25 | 50 160 160 160 160 152 232 50 76 160 240 160 160 160 160 90 105 40 25 27 Average Speed 179 | 154 160 160 160 160 195 232 104 191 293 240 226 160 160 438 233 169 107 45 35 Slowest Speed 700 | 160 160 160 160 160 240 232 200 236 496 240 700 160 160 700 700 185 420 191 50 Overloaded Moves . | . . . . . . . . . . . . . . . . . . . . Propulsion Burnouts . | . . . . . . . . . . . . . . . . . . . . Robots Hopped 16 | . . . . . . . . . . . . . . . . . . 3 13 Cave-ins Triggered . | . . . . . . . . . . . . . . . . . . . . Exploration Rate (%) 37 | 6 43 25 62 41 28 3 88 12 97 12 54 66 72 53 6 15 31 11 18 Regions Visited 19 Branch Regions 7 Pre-discovered Areas 2 | . . . . . . . . . . . 1 . 1 . . . . . . Known Exits Taken 3 | . . . . . . . . 1 . 1 . . . . . . . 1 . Unknown Exits Taken 13 | 1 1 1 1 1 1 . . . . . 1 1 1 1 1 1 1 . . Scrap Searched 10 | . . 1 . 2 . . . . . . 3 3 . 1 . . . . . Spaces Dug 33 | . . . . . . . . . 9 . . . . . . 3 21 . . Terrain Destroyed 490 | . 9 38 . 6 20 24 20 . 143 31 36 24 . 4 . 3 119 13 . Melee 5 | . . . . . . . . . . . . . . . . 3 2 . . Projectile 79 | . . . . . . . 2 . 8 10 10 4 . 4 . . 41 . . AOE 406 | . 9 38 . 6 20 24 18 . 135 21 26 20 . . . . 76 13 . Terrain Rammed . | . . . . . . . . . . . . . . . . . . . . Walls Destroyed . | . . . . . . . . . . . . . . . . . . . . Machines Disabled . | . . . . . . . . . . . . . . . . . . . . Actions | -11 -10 -10 -10 -9 -8 -7 -7 -7 -7 -6 -6 -6 -6 -5 -5 -4 -3 -2 -1 --------- Run | Yrd Mat Min Exi Min Mat Fac Was Fac Gar Fac Low Low Dat Pro Fac Fac Res Res Acc Total 11003 | 84 535 167 279 227 712 95 991 344 1318 474 513 530 91 493 378 422 2209 428 713 Wait 1487 | 1 271 57 . . 303 . 308 3 17 15 20 11 . . 62 . 347 . 72 Move 8427 | 64 235 94 276 210 351 66 606 326 1183 414 428 465 91 469 281 371 1541 341 615 Hop 16 | . . . . . . . . . . . . . . . . . . 3 13 Pick Up 96 | 1 2 3 2 4 4 1 3 7 18 3 7 3 . 3 2 5 21 6 1 Fast Attach 125 | 7 . . . 1 5 . 10 5 3 2 7 2 . . 11 3 54 14 1 Attach 56 | . . . 1 . . . 5 . 1 1 5 3 . 3 . 2 26 6 3 Detach 15 | . . . . . . . 2 . . . . . . . . 1 7 4 1 Swap 101 | . 5 2 . 3 11 2 5 2 11 5 4 12 . 1 4 10 18 6 . Drop 97 | . 1 . . . 7 2 7 . 24 3 2 7 . 2 4 11 16 9 2 Fire 478 | 11 21 10 . 9 28 15 45 . 32 28 24 27 . 15 14 14 154 31 . Melee 24 | . . . . . . . . . . . . . . . . 4 20 . . Ram 8 | . . . . . . . . 1 . . . . . . . . 5 . 2 Kick 1 | . . . . . . . . . . . . . . . . 1 . . . Crush 15 | . . 1 . . 3 . . . . 3 . . . . . . . 8 . Escape Stasis 31 | . . . . . . . . . 28 . . . . . . . . . 3 Rewire 26 | . . . . . . 9 . . 1 . 16 . . . . . . . . Trap . | . . . . . . . . . . . . . . . . . . . . Miscellaneous . | . . . . . . . . . . . . . . . . . . . . Route ------- -11/Scrapyard -10/Materials (discovered 3 exits: [*Mat] / [*Min x2]) -10/Mines -10/Exiles -9/Mines -8/Materials -7/Factory -7/Waste -7/Factory -7/Garrison (discovered 3 exits: *Fac x3) -6/Factory (discovered 4 exits: *Low x2 / Ext x2) -6/Lower Caves -6/Lower Caves (discovered 2 exits: *Fac / *Dat) -6/Data Miner -5/Proximity Caves -5/Factory -4/Factory -3/Research -2/Research -1/Access History --------- Turn | Location | Event 8 | -11/Scrapyard | Discovered new exit (range 15) 144 | -11/Scrapyard | Entered Materials 308 | -10/Materials | Build established: Mutant 344 | -10/Materials | Discovered new exit (range 7) 598 | -10/Materials | Discovered new exit (range 16) 840 | -10/Materials | Discovered new exit (range 8) 861 | -10/Materials | Entered Mines 868 | -10/Mines | Assisted by bots powering up and referring to "LRC-V3" 879 | -10/Mines | Learned Materials garrison access intel 882 | -10/Mines | Met a Derelict bent on vengeance 933 | -10/Mines | Excavation squad dispatched 933 | -10/Mines | A large section of the Mines collapsed 1042 | -10/Mines | Deemed a non-threat by the Exiles lab entrance 1044 | -10/Mines | Discovered new exit (range 5) 1099 | -10/Mines | Entered Exiles 1099 | -10/Exiles | Accompanied by 1 ally 1139 | -10/Exiles | Met 8R-AWN 1165 | -10/Exiles | Met EX-HEX 1210 | -10/Exiles | Met EX-BIN 1231 | -10/Exiles | Aligned with FarCom system 1232 | -10/Exiles | Given EX-Vault access code 1275 | -10/Exiles | Opened EX-Vault 1282 | -10/Exiles | Found Field Lobotomy Kit 1313 | -10/Exiles | Warned to stay clear of 0b10 Research branches 1368 | -10/Exiles | Met EX-DEC 1527 | -10/Exiles | Discovered new exit (range 10) 1544 | -10/Exiles | Left Exiles lab with Field Lobotomy Kit 1544 | -10/Exiles | Entered Mines 1544 | -9/Mines | Accompanied by 1 ally 1802 | -9/Mines | Discovered new exit (range 5) 1911 | -9/Mines | Entered Materials 1911 | -8/Materials | Evolved 4 slots: Propulsion x1, Utility x2, Weapon x1 1912 | -8/Materials | Loaded intel: 1 garrison access location 2269 | -8/Materials | Build established: Tank 2830 | -8/Materials | Discovered new exit (range 19) 3019 | -8/Materials | Entered Factory 3019 | -7/Factory | Evolved 2 slots: Utility x2 3221 | -7/Factory | Sucked down chute 3221 | -7/Factory | Entered Waste 3241 | -7/Waste | 1 allies followed down the chute 3250 | -7/Waste | Spotted C-40 Crusher 3255 | -7/Waste | Assimilated C-40 Crusher with FLK Orb 3285 | -7/Waste | Spotted C-40 Crusher 3292 | -7/Waste | Allies destroyed C-40 Crusher 3308 | -7/Waste | Spotted C-40 Crusher 3357 | -7/Waste | Spotted C-40 Crusher 3387 | -7/Waste | Destroyed C-40 Crusher 3425 | -7/Waste | Spotted C-40 Crusher 3429 | -7/Waste | Assimilated C-40 Crusher with FLK Orb 3548 | -7/Waste | Spotted C-40 Crusher 3586 | -7/Waste | Crushed by Compactor (1 part destroyed, 1 dropped) 3589 | -7/Waste | Crushed by Compactor (1 part destroyed, 1 dropped) 3592 | -7/Waste | Crushed by Compactor (0 parts destroyed, 1 dropped) 3595 | -7/Waste | Crushed by Compactor (1 part destroyed) 3598 | -7/Waste | Crushed by Compactor (1 part destroyed, 2 dropped) 3607 | -7/Waste | Crushed by Compactor (1 part destroyed) 3637 | -7/Waste | Crushed by Compactor (1 part destroyed) 3640 | -7/Waste | Crushed by Compactor (1 part destroyed) 3646 | -7/Waste | Crushed by Compactor (0 parts destroyed, 1 dropped) 3649 | -7/Waste | Crushed by Compactor (0 parts destroyed, 1 dropped) 3652 | -7/Waste | Crushed by Compactor (1 part destroyed, 2 dropped) 3683 | -7/Waste | Lost 10 parts (1p1n4u4w) 3684 | -7/Waste | Crushed by Compactor (1 part destroyed, 1 dropped) 3721 | -7/Waste | Crushed by Compactor (1 part destroyed, 1 dropped) 3741 | -7/Waste | Found Prototype Launcher 3741 | -7/Waste | Identified Mni. Smartbomb Launcher 3851 | -7/Waste | Discovered new exit (range 16) 3860 | -7/Waste | Warlord forces began an assault 3876 | -7/Waste | Build established: Mutant 3953 | -7/Waste | Core integrity fell below 50% 3953 | -7/Waste | Allies destroyed C-40 Crusher 3982 | -7/Waste | Allies destroyed C-40 Crusher 4323 | -7/Waste | Entered Factory 4323 | -7/Factory | Accompanied by 18 allies 4662 | -7/Factory | Build established: Tank 4968 | -7/Factory | Identified exit to Garrison 4971 | -7/Factory | Entered Garrison 4971 | -7/Garrison | Accompanied by 15 allies 5010 | -7/Garrison | Phase Generator disabled 5243 | -7/Garrison | Garrison Relay disabled 5331 | -7/Garrison | Triggered checkpoint 5350 | -7/Garrison | Garrison Relay disabled 5481 | -7/Garrison | Triggered checkpoint 5498 | -7/Garrison | Triggered checkpoint 5538 | -7/Garrison | Lost 3 allies 5577 | -7/Garrison | Triggered checkpoint 5589 | -7/Garrison | Triggered checkpoint 5827 | -7/Garrison | Triggered checkpoint 5974 | -7/Garrison | Garrison Relay disabled 6195 | -7/Garrison | Discovered new exit (range 13) 6353 | -7/Garrison | Lost 3 allies 6628 | -7/Garrison | Discovered new exit (range 12) 6715 | -7/Garrison | Triggered checkpoint 6998 | -7/Garrison | Found embedded Infiltrators 7246 | -7/Garrison | Build established: Bomber 7580 | -7/Garrison | Spotted B-75 Beast 7586 | -7/Garrison | Spotted B-75 Beast 7609 | -7/Garrison | Destroyed B-75 Beast 7846 | -7/Garrison | Discovered new exit (range 7) 7927 | -7/Garrison | Build established: Scavenger-Bomber 7933 | -7/Garrison | Triggered checkpoint 7937 | -7/Garrison | Garrison Relay disabled 8079 | -7/Garrison | Triggered checkpoint 8118 | -7/Garrison | Garrison Relay disabled 8604 | -7/Garrison | Entered Factory 8604 | -6/Factory | Accompanied by 3 allies 8604 | -6/Factory | Evolved 2 slots: Power x1, Propulsion x1 8954 | -6/Factory | First assault squad dispatched 9379 | -6/Factory | Identified exit to Lower Caves 9379 | -6/Factory | Identified exit to Extension 9694 | -6/Factory | Entered Lower Caves 9828 | -6/Lower Caves | Attracted the attention of an 0b10 outpost 9894 | -6/Lower Caves | Lost 9 parts (2p3n2u2w) 9957 | -6/Lower Caves | P-60 Hacker assimilated allied Soldier 5a 9977 | -6/Lower Caves | Met a Warlord Commander 9978 | -6/Lower Caves | Learned location of Warlord (-5) 9979 | -6/Lower Caves | Warlord Commander delivered Encrypted Comm Array 9983 | -6/Lower Caves | Found Encrypted Comm Array 10087 | -6/Lower Caves | Learned 4 Factory zone layouts 10161 | -6/Lower Caves | Attracted the attention of an 0b10 checkpoint 10180 | -6/Lower Caves | Build established: Scavenger-Gunner 10378 | -6/Lower Caves | Learned Factory stockpile data 10585 | -6/Lower Caves | Discovered new exit (range 15) 10796 | -6/Lower Caves | Entered another Lower Caves area 10801 | -6/Lower Caves | Core integrity fell below 50% 10824 | -6/Lower Caves | Discovered new exit (range 8) 11016 | -6/Lower Caves | Encountered a Warlord checkpoint 11069 | -6/Lower Caves | Attracted the attention of an 0b10 checkpoint 11186 | -6/Lower Caves | Found DCF Scrap (11 items) 11535 | -6/Lower Caves | Spotted B-75 Beast 11541 | -6/Lower Caves | Destroyed B-75 Beast 11592 | -6/Lower Caves | Discovered new exit (range 8) 11615 | -6/Lower Caves | Learned location of 1 exit from Lower Caves 11651 | -6/Lower Caves | Entered Data Miner 11651 | -6/Data Miner | Discovered new exit (range 6) 11682 | -6/Data Miner | Met Data Miner 11725 | -6/Data Miner | Learned location of Section 7 (-3) 11725 | -6/Data Miner | Acquired the access code to Warlord's prototype stash 11751 | -6/Data Miner | Received God Mode back door access code from Data Miner 11797 | -6/Data Miner | Entered Proximity Caves 11925 | -5/Proximity Caves | Learned Factory stockpile data 11975 | -5/Proximity Caves | Attracted the attention of an 0b10 checkpoint 12141 | -5/Proximity Caves | Spotted B-75 Beast 12199 | -5/Proximity Caves | Escorted by Enhanced Grunt 12214 | -5/Proximity Caves | Allies destroyed B-75 Beast 12243 | -5/Proximity Caves | Lost 7 parts (2p4n1w) 12506 | -5/Proximity Caves | Build established: Mutant 13843 | -5/Proximity Caves | Discovered new exit (range 8) 13899 | -5/Proximity Caves | Entered Factory 13899 | -5/Factory | Accompanied by 1 ally 13899 | -5/Factory | Evolved 2 slots: Utility x2 14034 | -5/Factory | Fabricated Adv. VSS Leg (x2) 14346 | -5/Factory | Build established: Scavenger-Gunner 14641 | -5/Factory | Discovered new exit (range 9) 14674 | -5/Factory | Entered another Factory area 14674 | -4/Factory | Evolved 2 slots: Utility x2 14951 | -4/Factory | Joined by Warlord Infantry squad 15176 | -4/Factory | Joined by Warlord Dakka squad 15332 | -4/Factory | Lost 6 allies 15345 | -4/Factory | Discovered new exit (range 16) 15381 | -4/Factory | Entered Research 15381 | -3/Research | Evolved 2 slots: Propulsion x2 15458 | -3/Research | Build established: Scavenger-Mutant 15556 | -3/Research | Fabricated Ionic Axe (x1) 16103 | -3/Research | Build established: Mutant 16251 | -3/Research | Spotted B-86 Titan 16281 | -3/Research | System corruption reached 10% 16310 | -3/Research | Destroyed B-86 Titan 16312 | -3/Research | Lost 4 parts (1p1u2w) 16612 | -3/Research | Lost 13 parts (1p4n7u1w) 17218 | -3/Research | Lost 3 parts (2n1u) 17294 | -3/Research | Lost 4 parts (1p2n1u) 17469 | -3/Research | Lost 3 parts (2p1w) 17605 | -3/Research | Build established: Scavenger-Mutant 17652 | -3/Research | Lost 8 parts (1p3n2u2w) 17721 | -3/Research | Spotted B-86 Titan 17730 | -3/Research | Core integrity fell below 50% 17772 | -3/Research | Lost 12 parts (2p8n2w) 17881 | -3/Research | First assault squad dispatched 17895 | -3/Research | Incoming investigation squad redirected 17906 | -3/Research | Incoming assault squad redirected 17907 | -3/Research | Incoming assault squad redirected 17952 | -3/Research | Discovered new exit (range 6) 17963 | -3/Research | Entered another Research area 17963 | -2/Research | Evolved 2 slots: Propulsion x2 18039 | -2/Research | Lost 4 parts (1p2u1w) 18060 | -2/Research | Garrison activated, responded to threat 18077 | -2/Research | System corruption reached 10% 18189 | -2/Research | Lost 13 parts (1p7n3u2w) 18240 | -2/Research | Lost 3 parts (2n1w) 18253 | -2/Research | Discovered new exit (range 13) 18256 | -2/Research | Identified exit to Access 18264 | -2/Research | Entered Access 18264 | -1/Access | Evolved 2 slots: Propulsion x2 18281 | -1/Access | Spotted B-99 Colossus 18379 | -1/Access | Energy Cycler disabled 18514 | -1/Access | Search patrols dispatched 18541 | -1/Access | Spotted B-99 Colossus 18549 | -1/Access | Core integrity fell below 50% 18566 | -1/Access | Core integrity fell below 20% 18572 | -1/Access | Destroyed by S-43 Plague with Heavy Machine Gun Last Messages --------------- 18545_ Slug penetrates Wall. 18545_ U-05 Engineer builds a Wall. 18548_ Slug penetrates Terminal. 18548_ Slug penetrates Wall. 18548_ Slug penetrates Terminal. 18548_ Penetrated by Slug. 18548_ Slug penetrates Terminal. 18549_ Imp. Q-thruster destroyed. 18551_ U-05 Engineer builds a Wall. 18553_ Field Propulsion Array destroyed. 18553_ Critical hit (Blast). 18554_ Penetrated by Slug. 18554_ Slug penetrates Wall. 18554_ Penetrated by Slug. 18554_ Slug penetrates Wall. 18554_ Knocked back. 18555_ Adv. Signal Interpreter severed. 18556_ Centrium Wheel severed. 18565_ Knocked back. 18571_ Slammed into C-57 Dissector. Map ----- +----------------------------------------------------+ | ?????????????????????????????????????????????????? | | ?????????????????????????????????????????????????? | | ?????????????????????????????????????????????????? | | ?????????????????????????????????????????????????? | | ?????????????????????????????????????????????????? | | ?????????????????????????????????????????????????? | | ??????????????????????????????????????????????#### | | ??????????????????????????????????????????????# | | ??????????????????????????????????????????????# | | ??????????????????????????????????????????????# | | ??????????????????????????????????????????????# | | ??????????????????????????????????????????????# | | ??????????????????????????????????????????????# | | ??????????????????????????????????????????????# | | ??????????????????##??????????????????????????# | | ??????????????????# ?????????????????????????# | | ??????????????????# ?????????????????????????# | | ??????????????????# ?????????BB?????????????# | | ??????????????????# ?????????BB?????????????# " | | ??????????????????# ???????????????????????# " | | ??????????????????# ???????????????????????? " | | ???????????????????? ! ???????????????????????? " | | ????????????????????? ?????????????????????????" | | ?????????????????????? ???????????????????????? | | ????????????????????####c####?h?????????????????? | | ????????????????????# @ "????????????????????# | | ????????????????????# c"????????????????????? | | ????????????????????# c "????????????????????? | | ????????????????????# ####?h??????????????????? | | ?????????????????#??# #???????????????????????? | | ???????????####### ## s##??????????????????????? | | ???????????# #??????????????????????? | | ???????????# s##??????????????????????? | | ???????????# " #??????????????????????? | | ???????????# """ #????BB????????????????? | | ???????????# """ s #????BB????????????????? | | ???????????# " ##??????????????????????? | | ???????????# #??????????????????????? | | ???????????# s #??????????????????????? | | ???????????# # ##??????????????????????? | | ???????????########## #???????????????????????? | | ???????????# ??????# #???????????????????????? | | ???????????# ????# #???????????????????????? | | ???????????# " ??# #???????????????????????? | | ???????????? """ # #???????????????????????? | | ???????????? """ / #???????????????????????? | | ???????????# " # #?????????????????????? # | | ???????????# # #?????????????????????? # | | ???????????# ?# #??????????????????????## | | ???????????+ = ??# #?????????????????????? | +----------------------------------------------------+ Best States ------------- Heat Dissipation 108 Energy Generation 45 Energy Capacity 875 Matter Stores 300 Matter Capacity 300 Sight Range 20 Terrain Scan Density 10 Armor Coverage 530 Resistance: KI 30 Resistance: EX 25 Core Shielding 20 Propulsion Shielding 66 Weapon Cycling 15 Phase Shifting 10 Evasion (%) 65 Targeting Accuracy 8 Target Analysis 12 Core Analysis 6 Armor Integrity Analysis 40 Recoil Reduction 9 Matter Filtering 30 Kinecelleration 40 Offensive Hacking 10 Item Schematics ----------------- Combat Drone Bay | -6/Data Miner | Free Lgt. Regenerative Plating | -6/Data Miner | Free Cld. Nuclear Pulse Thruster | -6/Data Miner | Free Prc. Energy Filter | -6/Data Miner | Free Ionic Axe | -6/Data Miner | Free Adv. VSS Leg | -6/Data Miner | Free Imp. Remote Shield | -6/Data Miner | Free Hyp. Mass Driver | -6/Data Miner | Free Adv. Power Amplifier | -6/Data Miner | Free Robot Schematics ------------------ S-27 Virus | -6/Data Miner | Free H-66 Slayer | -6/Data Miner | Free B-48 Gladiator | -6/Data Miner | Free B-60 Warrior | -6/Data Miner | Free A-27 Freighter | -6/Data Miner | Free L-61 Swordsman | -6/Data Miner | Free G-50 Soldier | -6/Data Miner | Free Fabricated ------------ Adv. VSS Leg | x2 | -5/Factory Ionic Axe | x1 | -3/Research Alien Tech Used ----------------- None Achievements -------------- None Challenges ------------ None Game ------ Seed NodeShieldProtection Manual? 0 Play Time 01:49:35 Cumulative 138.6 hours Start 2024.08.26 @ 22:46:49 End 2024.08.27 @ 00:34:10 Sessions 1 Manual Loads 0 Difficulty Rogue Special Mode None Game No. 111 Rogue 111 Adventurer 0 Explorer 0 Win Type - Total 0 Types 0/0/0/0/0/0/0/0/0 Lore% 58 Gallery% 64 Achievement% 48 Wizard Run 0 Options --------- Layout 2 ASCII 0 Keyboard 1 Movement Vi Keybinds 0 Fullscreen 1 Font 32/SmallcapsGlow Map View 77x44 Zoom Use 0% Tactical HUD 1 Map Filters NONE Filters NONE Steam 1 RUN: 6753d9d6-2c36-41e2-bb2c-374b58024c9f